[Event "BL Meisterschaftsturnier 2020"]
[Site "Karlsruhe"]
[Date "2020.09.17"]
[Round "3.5"]
[White "Klein, Felix"]
[Black "Werle, Jan"]
[Result "0-1"]
[ECO "B67"]
[WhiteElo "2307"]
[BlackElo "2580"]
[Annotator "ChessBase"]
[PlyCount "90"]
[EventDate "2020.09.16"]
[EventType "team-tourn"]
[EventCountry "GER"]
[WhiteTeam "Aachen"]
[BlackTeam "Werder Bremen"]
[TimeControl "40/5400+30:1800+30"]

1. e4 {[%emt 0:00:00]} c5 {[%emt 0:00:00]} 2. Nf3 {[%emt 0:00:00]} d6 {[%emt 0:00:00]} 3. d4 {[%emt 0:00:00]} cxd4 {[%emt 0:00:00]} 4. Nxd4 {[%emt 0:00:00]} Nf6 {[%emt 0:00:00]} 5. Nc3 {[%emt 0:00:00]} Nc6 {[%emt 0:00:00]} 6. Bg5 {[%emt 0:00:40]} e6 {[%emt 0:00:01]} 7. Qd2 {[%emt 0:00:21]} a6 {[%emt 0:00:09]} 8. O-O-O {[%emt 0:00:34]} Bd7 {[%emt 0:00:11]} 9. Kb1 {[%emt 0:02:06]} Be7 {[%emt 0:00:11]} 10. h4 {[%emt 0:12:09]} h6 {[%emt 0:11:10]} 11. Be3 {[%emt 0:17:59]} Ng4 {[%emt 0:08:25]} 12. f4 {[%emt 0:09:22]} Nxe3 {[%emt 0:22:38]} 13. Qxe3 {[%emt 0:00:20]} Qb6 {[%emt 0:01:18]} 14. Qg3 {[%emt 0:12:13]} O-O {[%emt 0:01:22]} 15. Nb3 {[%emt 0:00:39]} a5 {[%emt 0:14:09]} 16. a4 {[%emt 0:02:41]} Nb4 {[%emt 0:01:26]} 17. Nb5 {[%emt 0:13:02]} Bc6 {[%emt 0:01:32]} 18. Qe1 {[%emt 0:03:23]} Rfd8 {[%emt 0:09:49]} 19. Rh3 {[%emt 0:06:56]} Rac8 {[%emt 0:04:53]} 20. c3 {[%emt 0:00:43]} Na6 {[%emt 0:00:08]} 21. g4 {[%emt 0:00:43]} Nc5 {[%emt 0:02:46]} 22. Nxc5 {[%emt 0:01:44]} Qxc5 {[%emt 0:00:04]} 23. g5 {[%emt 0:11:43]} h5 {[%emt 0:02:02]} 24. Qe3 {[%emt 0:00:01]} g6 {[%emt 0:06:24]} 25. Kc1 {[%emt 0:00:17]} Qxe3+ {[%emt 0:05:12]} 26. Rxe3 {[%emt 0:00:01]} d5 {[%emt 0:00:21]} 27. f5 {[%emt 0:03:29]} Bc5 {[%emt 0:02:03]} 28. Red3 {[%emt 0:01:06]} d4 {[%emt 0:03:59]} 29. fxg6 {[%emt 0:00:22]} Bxe4 {[%emt 0:00:45]} 30. gxf7+ {[%emt 0:00:06]} Kxf7 {[%emt 0:00:12]} 31. g6+ {[%emt 0:02:02]} Kg7 {[%emt 0:01:06]} 32. Nxd4 {[%emt 0:00:34]} Bxd3 {[%emt 0:00:49]} 33. Nxe6+ {[%emt 0:00:01]} Kf6 {[%emt 0:00:28]} 34. Nxc5 {[%emt 0:00:47]} Bxg6 {[%emt 0:01:47]} 35. Rxd8 {[%emt 0:00:43]} Rxd8 {[%emt 0:00:05]} 36. Nxb7 {[%emt 0:00:05]} Ra8 {[%emt 0:00:09]} 37. Bb5 {[%emt 0:00:35]} Ke5 {[%emt 0:00:16]} 38. b4 {[%emt 0:00:02]} axb4 {[%emt 0:00:17]} 39. cxb4 {[%emt 0:00:01]} Kd4 {[%emt 0:01:00]} 40. Kb2 {[%emt 0:01:31]} Rf8 {[%emt 0:00:57]} 41. Nd6 {[%emt 0:08:33]} Rf6 {[%emt 0:03:52]} 42. Nc4 {[%emt 0:07:23]} Rf2+ {[%emt 0:04:44]} 43. Kc1 {[%emt 0:03:38]} Kc3 {[%emt 0:04:12]} 44. Kd1 {[%emt 0:04:15]} Rf1+ {[%emt 0:00:34]} 45. Ke2 {[%emt 0:00:18]} Bd3+ {[%emt 0:00:05]} 0-1

[Event "BL Meisterschaftsturnier 2020"]
[Site "Karlsruhe"]
[Date "2020.09.17"]
[Round "3.6"]
[White "Nikolic, Predrag"]
[Black "Amin, Bassem"]
[Result "0-1"]
[ECO "A49"]
[WhiteElo "2562"]
[BlackElo "2686"]
[Annotator "ChessBase"]
[PlyCount "74"]
[EventDate "2020.09.16"]
[EventType "team-tourn"]
[EventCountry "GER"]
[WhiteTeam "Solingen"]
[BlackTeam "Viernheim"]
[TimeControl "40/5400+30:1800+30"]

1. d4 {[%emt 0:00:00]} Nf6 {[%emt 0:01:25]} 2. Nf3 {[%emt 0:00:00]} g6 {[%emt 0:00:06]} 3. g3 {[%emt 0:00:01]} Bg7 {[%emt 0:00:13]} 4. Bg2 {[%emt 0:00:06]} O-O {[%emt 0:00:18]} 5. c4 {[%emt 0:00:36]} d6 {[%emt 0:00:28]} 6. O-O {[%emt 0:00:09]} Nc6 {[%emt 0:02:18]} 7. d5 {[%emt 0:00:31]} Na5 {[%emt 0:00:35]} 8. Nfd2 {[%emt 0:00:08]} c6 {[%emt 0:00:35]} 9. a3 {[%emt 0:00:09]} cxd5 {[%emt 0:01:37]} 10. cxd5 {[%emt 0:00:09]} Qc7 {[%emt 0:02:28]} 11. Ra2 {[%emt 0:02:06]} Bf5 {[%emt 0:07:40]} 12. e4 {[%emt 0:01:01]} Bg4 {[%emt 0:00:43]} 13. f3 {[%emt 0:13:32]} Bd7 {[%emt 0:00:18]} 14. Re1 {[%emt 0:19:59]} Rfc8 {[%emt 0:36:13]} 15. Bf1 {[%emt 0:01:14]} Qc5+ {[%emt 0:00:57]} 16. Kh1 {[%emt 0:08:18]} Qf2 {[%emt 0:07:07]} 17. Qe2 {[%emt 0:05:40]} Qxe2 {[%emt 0:01:09]} 18. Bxe2 {[%emt 0:00:07]} Ba4 {[%emt 0:02:22]} 19. Nc3 {[%emt 0:08:55]} Bc2 {[%emt 0:02:26]} 20. a4 {[%emt 0:01:23]} Nd7 {[%emt 0:01:19]} 21. Nb5 {[%emt 0:12:56]} a6 {[%emt 0:06:52]} 22. b4 {[%emt 0:08:24]} Bb3 {[%emt 0:02:36]} 23. Ra3 {[%emt 0:01:24]} Bc4 {[%emt 0:01:08]} 24. Nc3 {[%emt 0:05:12]} Bxc3 {[%emt 0:03:34]} 25. Rxc3 {[%emt 0:00:08]} Bxe2 {[%emt 0:00:05]} 26. Rxc8+ {[%emt 0:00:06]} Rxc8 {[%emt 0:00:02]} 27. bxa5 {[%emt 0:00:05]} Rc2 {[%emt 0:02:30]} 28. Rxe2 {[%emt 0:01:52]} Rxc1+ {[%emt 0:00:04]} 29. Kg2 {[%emt 0:00:04]} Nc5 {[%emt 0:02:45]} 30. f4 {[%emt 0:02:32]} Ra1 {[%emt 0:03:27]} 31. Nf3 {[%emt 0:04:26]} Rxa4 {[%emt 0:00:33]} 32. e5 {[%emt 0:00:03]} Kf8 {[%emt 0:01:54]} 33. Rb2 {[%emt 0:02:41]} Rxa5 {[%emt 0:00:38]} 34. Rb6 {[%emt 0:00:02]} Ra2+ {[%emt 0:00:45]} 35. Kg1 {[%emt 0:00:06]} Ra3 {[%emt 0:00:14]} 36. Nd2 {[%emt 0:01:13]} Rd3 {[%emt 0:00:30]} 37. Nc4 {[%emt 0:00:08]} dxe5 {[%emt 0:01:26]} 0-1

[Event "BL Meisterschaftsturnier 2020"]
[Site "Karlsruhe"]
[Date "2020.09.17"]
[Round "3.6"]
[White "Fish, Gennadij"]
[Black "Meessen, Rudolf"]
[Result "1-0"]
[ECO "A40"]
[WhiteElo "2453"]
[BlackElo "2234"]
[Annotator "ChessBase"]
[PlyCount "127"]
[EventDate "2020.09.16"]
[EventType "team-tourn"]
[EventCountry "GER"]
[WhiteTeam "Werder Bremen"]
[BlackTeam "Aachen"]
[TimeControl "40/5400+30:1800+30"]

1. d4 {[%emt 0:00:00]} g6 {[%emt 0:01:28]} 2. c4 {[%emt 0:00:00]} Bg7 {[%emt 0:00:29]} 3. Nf3 {[%emt 0:00:01]} d6 {[%emt 0:01:15]} 4. Nc3 {[%emt 0:02:45]} Nc6 {[%emt 0:00:23]} 5. g3 {[%emt 0:04:36]} e5 {[%emt 0:02:21]} 6. Bg5 {[%emt 0:04:00]} f6 {[%emt 0:01:01]} 7. Bc1 {[%emt 0:02:14]} Bg4 {[%emt 0:10:36]} 8. Bg2 {[%emt 0:01:33]} Qc8 {[%emt 0:04:52]} 9. Be3 {[%emt 0:13:34]} Bh3 {[%emt 0:04:20]} 10. Bxh3 {[%emt 0:02:38]} Qxh3 {[%emt 0:00:06]} 11. Qa4 {[%emt 0:00:23]} Qd7 {[%emt 0:04:42]} 12. O-O-O {[%emt 0:04:15]} Bh6 {[%emt 0:01:49]} 13. dxe5 {[%emt 0:08:46]} Nxe5 {[%emt 0:05:18]} 14. Qxd7+ {[%emt 0:07:33]} Nxd7 {[%emt 0:00:23]} 15. Bxh6 {[%emt 0:02:26]} Nxh6 {[%emt 0:00:06]} 16. Nb5 {[%emt 0:00:36]} Kd8 {[%emt 0:01:20]} 17. h3 {[%emt 0:02:39]} Re8 {[%emt 0:00:25]} 18. e3 {[%emt 0:00:31]} a6 {[%emt 0:00:50]} 19. Nc3 {[%emt 0:00:18]} b5 {[%emt 0:06:56]} 20. cxb5 {[%emt 0:01:40]} axb5 {[%emt 0:01:30]} 21. Nd4 Nc5 {[%emt 0:16:06]} 22. Ndxb5 {[%emt 0:02:42]} f5 {[%emt 0:01:39]} 23. Kc2 {[%emt 0:03:43]} Kd7 {[%emt 0:01:53]} 24. a3 {[%emt 0:02:10]} Ne4 {[%emt 0:00:44]} 25. Rhf1 {[%emt 0:04:20]} Nf7 {[%emt 0:04:48]} 26. Nd5 {[%emt 0:04:06]} Re5 {[%emt 0:05:53]} 27. Nbc3 {[%emt 0:04:01]} Nxc3 {[%emt 0:01:08]} 28. Nxc3 {[%emt 0:00:19]} c6 {[%emt 0:00:11]} 29. Rd4 {[%emt 0:01:15]} d5 {[%emt 0:00:34]} 30. Ra4 {[%emt 0:03:13]} Rxa4 {[%emt 0:03:32]} 31. Nxa4 {[%emt 0:00:40]} Nd6 {[%emt 0:01:27]} 32. Nc5+ {[%emt 0:01:31]} Kc7 {[%emt 0:00:01]} 33. b4 {[%emt 0:03:16]} Nc4 {[%emt 0:02:14]} 34. Ra1 {[%emt 0:00:17]} g5 {[%emt 0:00:39]} 35. Kd3 {[%emt 0:01:01]} f4 {[%emt 0:02:24]} 36. e4 {[%emt 0:04:11]} Re7 {[%emt 0:03:12]} 37. gxf4 {[%emt 0:01:43]} gxf4 {[%emt 0:02:52]} 38. a4 {[%emt 0:01:30]} Ne5+ {[%emt 0:00:13]} 39. Kc3 {[%emt 0:00:25]} Nf3 {[%emt 0:02:43]} 40. exd5 {[%emt 0:02:32]} cxd5 {[%emt 0:00:06]} 41. a5 {[%emt 0:31:19]} Kc6 {[%emt 0:33:22]} 42. a6 {[%emt 0:02:37]} Kb6 {[%emt 0:00:09]} 43. Ra5 {[%emt 0:00:22]} Rc7 {[%emt 0:03:41]} 44. Kb2 {[%emt 0:00:00]} Ne5 {[%emt 0:00:00]} 45. Na4+ {[%emt 0:00:00]} Ka7 {[%emt 0:00:00]} 46. Rxd5 {[%emt 0:00:00]} Nc4+ {[%emt 0:00:00]} 47. Kb3 {[%emt 0:00:00]} Nb6 {[%emt 0:00:00]} 48. Nxb6 {[%emt 0:00:00]} Kxb6 {[%emt 0:00:00]} 49. b5 {[%emt 0:00:00]} Rc1 {[%emt 0:00:00]} 50. Rf5 {[%emt 0:00:00]} Rb1+ {[%emt 0:00:00]} 51. Kc4 {[%emt 0:00:00]} Rc1+ {[%emt 0:00:00]} 52. Kd3 {[%emt 0:00:00]} Rh1 {[%emt 0:00:00]} 53. Rh5 {[%emt 0:00:00]} Ra1 {[%emt 0:00:00]} 54. Ke4 {[%emt 0:00:00]} Ra4+ {[%emt 0:00:00]} 55. Kf3 {[%emt 0:00:00]} Rc4 {[%emt 0:00:00]} 56. Rxh7 {[%emt 0:00:00]} Kxb5 {[%emt 0:00:00]} 57. a7 {[%emt 0:00:00]} Ra4 {[%emt 0:00:00]} 58. h4 {[%emt 0:00:00]} Kc5 {[%emt 0:00:00]} 59. h5 {[%emt 0:00:00]} Kd6 {[%emt 0:00:00]} 60. h6 {[%emt 0:00:00]} Ke6 {[%emt 0:00:00]} 61. Rb7 {[%emt 0:00:00]} Kf5 {[%emt 0:00:00]} 62. h7 {[%emt 0:00:00]} Ra3+ {[%emt 0:00:00]} 63. Kg2 {[%emt 0:00:00]} f3+ {[%emt 0:00:00]} 64. Kg3 {[%emt 0:00:00]} 1-0

[Event "BL Meisterschaftsturnier 2020"]
[Site "Karlsruhe"]
[Date "2020.09.17"]
[Round "3.7"]
[White "Kovalenko, Igor"]
[Black "Wegerle, Joerg"]
[Result "1-0"]
[ECO "D05"]
[WhiteElo "2645"]
[BlackElo "2401"]
[Annotator "ChessBase"]
[PlyCount "79"]
[EventDate "2020.09.16"]
[EventType "team-tourn"]
[EventCountry "GER"]
[WhiteTeam "Viernheim"]
[BlackTeam "Solingen"]
[TimeControl "40/5400+30:1800+30"]

1. d4 {[%emt 0:00:00]} d5 {[%emt 0:00:00]} 2. Nf3 {[%emt 0:00:00]} e6 {[%emt 0:00:18]} 3. e3 {[%emt 0:01:21]} c5 {[%emt 0:02:26]} 4. b3 {[%emt 0:00:04]} Nf6 {[%emt 0:02:34]} 5. Bd3 {[%emt 0:00:05]} Be7 {[%emt 0:01:07]} 6. O-O {[%emt 0:00:13]} O-O {[%emt 0:00:47]} 7. Bb2 {[%emt 0:00:08]} Nc6 {[%emt 0:02:14]} 8. a3 {[%emt 0:01:58]} b6 {[%emt 0:01:45]} 9. Nbd2 {[%emt 0:00:08]} Bb7 {[%emt 0:00:12]} 10. Qe2 {[%emt 0:00:06]} a5 {[%emt 0:07:35]} 11. Ne5 {[%emt 0:08:37]} cxd4 {[%emt 0:11:03]} 12. Nxc6 {[%emt 0:09:22]} Bxc6 {[%emt 0:00:25]} 13. Bxd4 {[%emt 0:00:08]} Nd7 {[%emt 0:08:26]} 14. f4 {[%emt 0:19:52]} f5 {[%emt 0:08:58]} 15. g4 {[%emt 0:09:17]} Nc5 {[%emt 0:11:57]} 16. Nf3 {[%emt 0:02:58]} Rc8 {[%emt 0:04:04]} 17. Rf2 {[%emt 0:11:23]} Be8 {[%emt 0:10:54]} 18. Rg2 {[%emt 0:02:53]} Nxd3 {[%emt 0:05:18]} 19. cxd3 {[%emt 0:02:06]} fxg4 {[%emt 0:01:15]} 20. Ne5 {[%emt 0:19:02]} Bf6 {[%emt 0:07:16]} 21. Qxg4 {[%emt 0:00:11]} Qe7 {[%emt 0:02:00]} 22. h4 {[%emt 0:07:30]} Bg6 {[%emt 0:08:25]} 23. h5 {[%emt 0:00:04]} Bf5 {[%emt 0:00:08]} 24. Qe2 {[%emt 0:00:39]} h6 {[%emt 0:01:07]} 25. Kh1 {[%emt 0:00:58]} Rc7 {[%emt 0:01:12]} 26. Rag1 {[%emt 0:01:19]} Rfc8 {[%emt 0:00:27]} 27. Qb2 {[%emt 0:01:41]} Qe8 {[%emt 0:01:00]} 28. Ng6 {[%emt 0:01:09]} Bxd3 {[%emt 0:00:33]} 29. Bxf6 {[%emt 0:00:41]} Be4 {[%emt 0:00:04]} 30. Qe5 {[%emt 0:00:17]} Bxg2+ {[%emt 0:00:44]} 31. Rxg2 {[%emt 0:00:03]} Rc1+ {[%emt 0:00:17]} 32. Kh2 {[%emt 0:00:11]} R8c2 {[%emt 0:00:21]} 33. Bh4 {[%emt 0:00:44]} Rxg2+ {[%emt 0:00:45]} 34. Kxg2 {[%emt 0:00:03]} Kf7 {[%emt 0:00:50]} 35. f5 Qc6 36. fxe6+ {[%emt 0:01:40]} Ke8 {[%emt 0:00:48]} 37. Qb8+ {[%emt 0:00:29]} Qc8 {[%emt 0:00:08]} 38. Qd6 {[%emt 0:00:17]} Qc2+ {[%emt 0:00:27]} 39. Bf2 {[%emt 0:00:04]} Qe4+ {[%emt 0:00:11]} 40. Kg3 {[%emt 0:00:05]} 1-0

[Event "BL Meisterschaftsturnier 2020"]
[Site "Karlsruhe"]
[Date "2020.09.17"]
[Round "3.7"]
[White "Coenen, Norbert"]
[Black "Wachinger, Nikolas"]
[Result "0-1"]
[ECO "B92"]
[WhiteElo "2289"]
[BlackElo "2304"]
[Annotator "ChessBase"]
[PlyCount "76"]
[EventDate "2020.09.16"]
[EventType "team-tourn"]
[EventCountry "GER"]
[WhiteTeam "Aachen"]
[BlackTeam "Werder Bremen"]
[TimeControl "40/5400+30:1800+30"]

1. e4 {[%emt 0:00:00]} c5 {[%emt 0:00:00]} 2. Nf3 {[%emt 0:00:00]} d6 {[%emt 0:00:00]} 3. d4 {[%emt 0:01:44]} cxd4 {[%emt 0:00:11]} 4. Nxd4 {[%emt 0:00:06]} Nf6 {[%emt 0:00:08]} 5. Nc3 {[%emt 0:00:43]} a6 {[%emt 0:00:07]} 6. Be2 {[%emt 0:00:31]} e5 {[%emt 0:00:11]} 7. Nb3 {[%emt 0:00:05]} Be7 {[%emt 0:00:11]} 8. O-O {[%emt 0:00:04]} O-O {[%emt 0:00:08]} 9. Be3 {[%emt 0:00:07]} Be6 {[%emt 0:00:09]} 10. Qd2 {[%emt 0:00:07]} Nbd7 {[%emt 0:00:07]} 11. a4 {[%emt 0:00:11]} Nb6 {[%emt 0:00:10]} 12. Rfd1 {[%emt 0:02:47]} Rc8 {[%emt 0:00:15]} 13. a5 {[%emt 0:01:14]} Nc4 {[%emt 0:00:14]} 14. Bxc4 {[%emt 0:00:11]} Rxc4 {[%emt 0:00:08]} 15. f3 {[%emt 0:02:12]} Qc8 {[%emt 0:03:44]} 16. Rac1 {[%emt 0:10:28]} Rd8 {[%emt 0:04:59]} 17. Nd5 {[%emt 0:03:43]} Nxd5 {[%emt 0:02:04]} 18. exd5 {[%emt 0:00:06]} Bf5 {[%emt 0:00:06]} 19. c3 {[%emt 0:00:43]} Qd7 {[%emt 0:00:40]} 20. Qe2 {[%emt 0:05:43]} Rdc8 {[%emt 0:14:55]} 21. Nd2 {[%emt 0:13:19]} Ra4 {[%emt 0:00:27]} 22. b4 {[%emt 0:03:56]} Ra2 23. Qf1 {[%emt 0:05:43]} Bc2 {[%emt 0:22:21]} 24. Ra1 {[%emt 0:13:24]} Rxa1 {[%emt 0:02:09]} 25. Rxa1 {[%emt 0:00:08]} Rxc3 {[%emt 0:00:12]} 26. Qc1 {[%emt 0:04:55]} Qc8 {[%emt 0:02:07]} 27. Ra3 {[%emt 0:00:59]} Bb3 {[%emt 0:09:08]} 28. Qb2 {[%emt 0:02:47]} Rxe3 {[%emt 0:00:15]} 29. Rxb3 {[%emt 0:00:33]} Re1+ {[%emt 0:00:11]} 30. Kf2 {[%emt 0:02:58]} Rc1 {[%emt 0:00:16]} 31. Rd3 {[%emt 0:01:16]} Rc2 {[%emt 0:01:00]} 32. Qb3 {[%emt 0:00:09]} Bg5 {[%emt 0:00:42]} 33. Ke2 {[%emt 0:03:27]} e4 {[%emt 0:00:50]} 34. fxe4 {[%emt 0:02:41]} Qg4+ {[%emt 0:00:07]} 35. Ke1 {[%emt 0:00:20]} Rc1+ {[%emt 0:00:06]} 36. Kf2 {[%emt 0:00:23]} Bxd2 {[%emt 0:00:06]} 37. Rxd2 {[%emt 0:00:27]} Qf4+ {[%emt 0:00:05]} 38. Ke2 {[%emt 0:00:24]} Qxe4+ {[%emt 0:00:05]} 0-1

[Event "BL Meisterschaftsturnier 2020"]
[Site "Karlsruhe"]
[Date "2020.09.17"]
[Round "3.8"]
[White "Halvax, Georg"]
[Black "Fedorchuk, Sergey A."]
[Result "1/2-1/2"]
[ECO "E16"]
[WhiteElo "2402"]
[BlackElo "2615"]
[Annotator "ChessBase"]
[PlyCount "41"]
[EventDate "2020.09.16"]
[EventType "team-tourn"]
[EventCountry "GER"]
[WhiteTeam "Solingen"]
[BlackTeam "Viernheim"]
[TimeControl "40/5400+30:1800+30"]

1. d4 {[%emt 0:00:00]} Nf6 {[%emt 0:00:16]} 2. c4 {[%emt 0:00:00]} e6 {[%emt 0:00:19]} 3. Nf3 {[%emt 0:00:15]} b6 {[%emt 0:01:04]} 4. g3 {[%emt 0:00:16]} Bb7 {[%emt 0:03:00]} 5. Bg2 {[%emt 0:00:14]} Bb4+ {[%emt 0:03:28]} 6. Bd2 {[%emt 0:00:10]} Bxd2+ {[%emt 0:01:40]} 7. Qxd2 {[%emt 0:00:36]} d6 {[%emt 0:00:17]} 8. O-O {[%emt 0:00:30]} Qe7 {[%emt 0:00:15]} 9. Nc3 {[%emt 0:00:20]} Ne4 {[%emt 0:01:54]} 10. Qc2 {[%emt 0:02:17]} Nxc3 {[%emt 0:04:07]} 11. Qxc3 {[%emt 0:00:09]} O-O {[%emt 0:01:06]} 12. Rac1 {[%emt 0:10:52]} Nd7 {[%emt 0:02:02]} 13. Rfd1 {[%emt 0:00:52]} a5 {[%emt 0:16:10]} 14. Ne5 {[%emt 0:04:05]} Bxg2 {[%emt 0:05:20]} 15. Nxd7 {[%emt 0:00:23]} Qxd7 {[%emt 0:00:10]} 16. Kxg2 {[%emt 0:00:08]} a4 {[%emt 0:00:38]} 17. e4 {[%emt 0:02:47]} h6 {[%emt 0:06:32]} 18. b4 {[%emt 0:08:17]} axb3 {[%emt 0:07:06]} 19. axb3 {[%emt 0:00:10]} Ra2 {[%emt 0:00:33]} 20. Ra1 {[%emt 0:00:21]} Rfa8 {[%emt 0:00:27]} 21. Rxa2 {[%emt 0:00:14]} 1/2-1/2

[Event "BL Meisterschaftsturnier 2020"]
[Site "Karlsruhe"]
[Date "2020.09.17"]
[Round "3.8"]
[White "Colbow, Collin"]
[Black "Lamby, Philipp"]
[Result "1-0"]
[ECO "C77"]
[WhiteElo "2210"]
[BlackElo "2130"]
[Annotator "ChessBase"]
[PlyCount "89"]
[EventDate "2020.09.16"]
[EventType "team-tourn"]
[EventCountry "GER"]
[WhiteTeam "Werder Bremen"]
[BlackTeam "Aachen"]
[TimeControl "40/5400+30:1800+30"]

1. e4 {[%emt 0:00:00]} e5 {[%emt 0:00:00]} 2. Nf3 {[%emt 0:00:39]} Nc6 {[%emt 0:00:00]} 3. Bb5 {[%emt 0:00:08]} a6 {[%emt 0:00:00]} 4. Ba4 {[%emt 0:00:05]} Nf6 {[%emt 0:00:02]} 5. Nc3 {[%emt 0:02:15]} Bd6 {[%emt 0:08:19]} 6. d3 {[%emt 0:02:49]} h6 {[%emt 0:02:30]} 7. a3 {[%emt 0:07:35]} b5 {[%emt 0:06:31]} 8. Bb3 {[%emt 0:00:19]} Bc5 {[%emt 0:07:33]} 9. Nxe5 {[%emt 0:10:33]} Nxe5 {[%emt 0:00:09]} 10. d4 Bd6 {[%emt 0:00:27]} 11. dxe5 {[%emt 0:02:49]} Bxe5 {[%emt 0:00:06]} 12. Nd5 {[%emt 0:05:38]} c6 {[%emt 0:07:38]} 13. f4 {[%emt 0:20:11]} Nxd5 {[%emt 0:09:39]} 14. exd5 {[%emt 0:04:55]} Bd6 {[%emt 0:05:38]} 15. O-O {[%emt 0:02:49]} O-O {[%emt 0:00:18]} 16. Be3 {[%emt 0:05:44]} c5 {[%emt 0:11:45]} 17. c4 {[%emt 0:02:24]} Rb8 {[%emt 0:05:58]} 18. cxb5 {[%emt 0:05:59]} Rxb5 {[%emt 0:05:10]} 19. Qd3 {[%emt 0:08:20]} f5 {[%emt 0:04:21]} 20. Rac1 {[%emt 0:00:55]} Qb6 {[%emt 0:01:35]} 21. Rc3 {[%emt 0:00:47]} a5 {[%emt 0:07:38]} 22. Rb1 {[%emt 0:02:17]} a4 {[%emt 0:08:02]} 23. Bxa4 {[%emt 0:00:18]} Rxb2 {[%emt 0:00:06]} 24. Rxb2 {[%emt 0:00:52]} Qxb2 {[%emt 0:00:02]} 25. Qc2 {[%emt 0:07:54]} Qa1+ {[%emt 0:03:08]} 26. Qc1 {[%emt 0:02:53]} Qxc1+ {[%emt 0:02:37]} 27. Rxc1 {[%emt 0:00:11]} c4 {[%emt 0:00:37]} 28. Rxc4 {[%emt 0:00:45]} Bxa3 {[%emt 0:00:25]} 29. Bc5 {[%emt 0:01:15]} Bxc5+ {[%emt 0:00:54]} 30. Rxc5 {[%emt 0:00:09]} Kf7 {[%emt 0:01:04]} 31. Kf2 {[%emt 0:02:15]} Ke7 {[%emt 0:00:21]} 32. Ke3 {[%emt 0:00:09]} Kd6 {[%emt 0:01:57]} 33. Kd4 {[%emt 0:00:03]} Ba6 {[%emt 0:00:47]} 34. Ra5 {[%emt 0:00:24]} Ra8 {[%emt 0:00:55]} 35. Bc2 {[%emt 0:01:01]} g6 {[%emt 0:00:26]} 36. h4 {[%emt 0:00:53]} h5 {[%emt 0:00:43]} 37. g3 {[%emt 0:00:34]} Bb7 {[%emt 0:00:38]} 38. Rb5 {[%emt 0:00:43]} Kc7 {[%emt 0:00:19]} 39. Ke5 {[%emt 0:00:27]} Ra3 {[%emt 0:00:35]} 40. Rb3 {[%emt 0:01:20]} Ra5 {[%emt 0:00:01]} 41. Rc3+ {[%emt 0:01:31]} Kd8 {[%emt 0:02:31]} 42. Bb3 {[%emt 0:05:40]} Ra3 {[%emt 0:03:36]} 43. d6 {[%emt 0:08:16]} Bc6 {[%emt 0:01:52]} 44. Kd4 {[%emt 0:02:25]} Ba4 {[%emt 0:04:37]} 45. Bf7 {[%emt 0:01:51]} 1-0

[Event "BL Meisterschaftsturnier 2020"]
[Site "Karlsruhe"]
[Date "2020.09.17"]
[Round "3.9"]
[White "Kamsky, Gata"]
[Black "Huschenbeth, Niclas"]
[Result "1-0"]
[ECO "A00"]
[WhiteElo "2674"]
[BlackElo "2612"]
[Annotator "ChessBase"]
[PlyCount "93"]
[EventDate "2020.09.16"]
[EventType "team-tourn"]
[EventCountry "GER"]
[WhiteTeam "Deizisau"]
[BlackTeam "Bayern Muenchen"]
[TimeControl "40/5400+30:1800+30"]

1. g3 {[%emt 0:01:51]} d5 {[%emt 0:00:25]} 2. Bg2 {[%emt 0:00:54]} Nf6 {[%emt 0:04:45]} 3. Nf3 {[%emt 0:02:02]} c5 {[%emt 0:00:12]} 4. O-O {[%emt 0:00:50]} e6 {[%emt 0:00:05]} 5. d3 {[%emt 0:00:23]} Nc6 {[%emt 0:01:22]} 6. Nbd2 {[%emt 0:00:09]} Be7 {[%emt 0:00:53]} 7. e4 {[%emt 0:00:07]} b6 {[%emt 0:00:12]} 8. Re1 {[%emt 0:00:21]} Bb7 {[%emt 0:00:13]} 9. c3 {[%emt 0:00:33]} Qc7 {[%emt 0:01:28]} 10. Qe2 {[%emt 0:02:45]} O-O {[%emt 0:10:17]} 11. e5 {[%emt 0:01:12]} Nd7 {[%emt 0:00:05]} 12. Nf1 {[%emt 0:00:56]} b5 {[%emt 0:01:15]} 13. h4 {[%emt 0:13:43]} Rfc8 {[%emt 0:00:33]} 14. Bg5 {[%emt 0:04:02]} Bf8 {[%emt 0:00:24]} 15. N1h2 {[%emt 0:06:26]} a5 {[%emt 0:13:57]} 16. Bf4 {[%emt 0:01:19]} a4 {[%emt 0:06:21]} 17. a3 {[%emt 0:05:28]} b4 {[%emt 0:04:09]} 18. Ng4 {[%emt 0:03:13]} bxc3 {[%emt 0:01:18]} 19. bxc3 {[%emt 0:00:05]} Qa5 {[%emt 0:01:48]} 20. Bd2 {[%emt 0:03:27]} Qd8 {[%emt 0:07:16]} 21. Bg5 {[%emt 0:01:11]} Qa5 {[%emt 0:00:37]} 22. Bd2 {[%emt 0:05:23]} Qd8 {[%emt 0:00:31]} 23. Bg5 {[%emt 0:03:14]} Qc7 {[%emt 0:00:57]} 24. Bf4 {[%emt 0:01:32]} Ba6 {[%emt 0:01:57]} 25. Rad1 {[%emt 0:04:50]} Rab8 {[%emt 0:06:29]} 26. Ng5 {[%emt 0:00:15]} h6 {[%emt 0:11:22]} 27. Nxf7 {[%emt 0:00:51]} Kxf7 {[%emt 0:01:37]} 28. Bxd5 {[%emt 0:00:42]} Nd8 {[%emt 0:08:55]} 29. Be4 {[%emt 0:06:05]} Bb7 {[%emt 0:07:15]} 30. d4 {[%emt 0:10:28]} cxd4 {[%emt 0:03:20]} 31. Rxd4 {[%emt 0:00:28]} Bxe4 {[%emt 0:00:07]} 32. Qxe4 {[%emt 0:00:07]} Nc5 {[%emt 0:01:42]} 33. Qh7 {[%emt 0:00:26]} Ke8 {[%emt 0:00:11]} 34. Bxh6 {[%emt 0:01:33]} Qf7 {[%emt 0:02:42]} 35. Rf4 {[%emt 0:00:10]} gxh6 {[%emt 0:00:09]} 36. Rxf7 {[%emt 0:00:19]} Nxf7 {[%emt 0:00:04]} 37. Nf6+ {[%emt 0:00:06]} Ke7 {[%emt 0:00:02]} 38. g4 {[%emt 0:02:43]} Rc7 {[%emt 0:03:26]} 39. g5 {[%emt 0:08:15]} hxg5 {[%emt 0:00:07]} 40. hxg5 {[%emt 0:00:05]} Kd8 {[%emt 0:00:28]} 41. Qg8 {[%emt 0:16:19]} Ke7 {[%emt 0:00:05]} 42. Rd1 {[%emt 0:04:30]} Rbb7 {[%emt 0:15:04]} 43. Qh7 {[%emt 0:01:07]} Nd7 {[%emt 0:00:12]} 44. Rxd7+ {[%emt 0:06:01]} Rxd7 {[%emt 0:00:03]} 45. g6 {[%emt 0:00:35]} Rd1+ {[%emt 0:01:16]} 46. Kg2 {[%emt 0:00:05]} Kd8 {[%emt 0:00:06]} 47. Qg8 {[%emt 0:00:29]} 1-0